fUSD/lending_fUSD_20250916
["ID","MTS","AMOUNT","RATE_DAILY","PERIOD"]
[385842843,1758059474661,-426.57,0.00030958,6]
[385842844,1758059474670,-400.0,0.00030958,6]
[385842845,1758059474680,-400.0,0.00030958,6]
[385842846,1758059474689,-2554.31,0.00030958,6]
[385842847,1758059474698,-400.0,0.00030958,6]
[385842848,1758059474707,-695.75,0.00030958,6]
[385842849,1758059474717,-465.42,0.00030958,6]
[385842850,1758059474726,-213.30284252,0.00030958,6]
[385842851,1758059474736,-400.0,0.00030958,6]
[385842852,1758059474748,-528.3,0.00030958,6]
[385842853,1758059474759,-400.0,0.00030958,6]
[385842854,1758059474768,-400.0,0.00030958,6]
[385842855,1758059474777,-400.0,0.00030958,6]
[385842856,1758059474786,-400.0,0.00030958,6]
[385842857,1758059474796,-400.0,0.00030958,6]
[385842858,1758059474805,-629.46,0.00030958,6]
[385842859,1758059474815,-402.58,0.00030958,6]
[385842860,1758059474997,-760.02,0.00030958,6]
[385842861,1758059475008,-400.0,0.00030958,6]
[385842862,1758059475017,-400.0,0.00030958,6]
[385842863,1758059475026,-400.0,0.00030958,6]
[385842864,1758059475035,-400.0,0.00030958,6]
[385842865,1758059475046,-573.15,0.00030958,6]
[385842866,1758059475055,-167.84,0.00030958,6]
[385842867,1758059475065,-400.0,0.00030958,6]
[385842868,1758059475074,-400.0,0.00030958,6]
[385842869,1758059475084,-400.0,0.00030958,6]
[385842870,1758059475094,-555.71,0.00030958,6]
[385842871,1758059475104,-400.0,0.00030958,6]
[385842872,1758059475113,-400.0,0.00030958,6]
[385842873,1758059475123,-400.0,0.00030958,6]
[385842874,1758059475132,-400.0,0.00030958,6]
[385842875,1758059475141,-479.18,0.00030958,6]
[385842876,1758059475151,-423.89,0.00030958,6]
[385842877,1758059475161,-447.53,0.00030958,6]
[385842878,1758059475171,-418.11,0.00030958,6]
[385842879,1758059475180,-242.7658614,0.00030958,6]
[385842880,1758059475190,-450.0,0.00030958,6]
[385842881,1758059475199,-435.17,0.00030958,6]
[385842882,1758059475209,-400.0,0.00030958,6]
[385842883,1758059475218,-400.0,0.00030958,6]
[385842884,1758059475228,-400.0,0.00030958,6]
[385842885,1758059475237,-400.0,0.00030958,6]
[385842886,1758059475246,-400.0,0.00030958,6]
[385842887,1758059475257,-778.74,0.00030958,6]
[385842888,1758059475267,-704.61,0.00030958,6]
[385842889,1758059475276,-400.0,0.00030958,6]
[385842890,1758059475286,-400.0,0.00030958,6]
[385842891,1758059475295,-400.0,0.00030958,6]
[385842892,1758059475304,-400.0,0.00030958,6]
[385842893,1758059475315,-400.0,0.00030958,6]
[385842894,1758059475325,-400.0,0.00030958,6]
[385842895,1758059475334,-1172.18,0.00030958,6]
[385842896,1758059475344,-400.0,0.00030958,6]
[385842897,1758059475353,-400.0,0.00030958,6]
[385842898,1758059475362,-400.0,0.00030958,6]
[385842899,1758059475371,-400.0,0.00030958,6]
[385842900,1758059475380,-278.54178267,0.00030958,6]
[385842901,1758059475392,-5286.95,0.00030958,6]
[385842902,1758059475401,-400.0,0.00030958,6]
[385842903,1758059475413,-400.0,0.00030958,6]
[385842904,1758059475423,-400.0,0.00030958,6]
[385842905,1758059475435,-400.0,0.00030958,6]
[385842906,1758059475444,-400.0,0.00030958,6]
[385842907,1758059475454,-400.0,0.00030958,6]
[385842908,1758059475463,-542.4,0.00030958,6]
[385842909,1758059475474,-400.0,0.00030958,6]
[385842910,1758059475483,-400.0,0.00030958,6]
[385842911,1758059475493,-400.0,0.00030958,6]
[385842912,1758059475502,-400.0,0.00030958,6]
[385842913,1758059475512,-400.0,0.00030958,6]
[385842914,1758059475522,-435.09,0.00030958,6]
[385842915,1758059475532,-400.0,0.00030958,6]
[385842916,1758059475542,-527.52,0.00030958,6]
[385842917,1758059475552,-400.0,0.00030958,6]
[385842918,1758059475561,-551.22,0.00030958,6]
[385842919,1758059475571,-400.0,0.00030958,6]
[385842920,1758059475580,-400.0,0.00030958,6]
[385842921,1758059475590,-400.0,0.00030958,6]
[385842922,1758059475599,-400.0,0.00030958,6]
[385842923,1758059475608,-400.0,0.00030958,6]
[385842924,1758059475618,-400.0,0.00030958,6]
[385842925,1758059475627,-400.0,0.00030958,6]
[385842926,1758059475637,-400.0,0.00030958,6]
[385842927,1758059475646,-400.0,0.00030958,6]
[385842928,1758059475655,-400.0,0.00030958,6]
[385842929,1758059475664,-400.0,0.00030958,6]
[385842930,1758059475674,-400.0,0.00030958,6]
[385842931,1758059475683,-483.09,0.00030958,6]
[385842932,1758059475692,-400.0,0.00030958,6]
[385842933,1758059475701,-400.0,0.00030958,6]
[385842934,1758059475711,-777.85,0.00030958,6]
[385842935,1758059475720,-400.0,0.00030958,6]
[385842936,1758059475729,-445.13,0.00030958,6]
[385842937,1758059475739,-510.44,0.00030958,6]
[385842938,1758059475748,-400.0,0.00030958,6]
[385842939,1758059475758,-400.0,0.00030958,6]
[385842940,1758059475767,-650.71,0.00030958,6]
[385842941,1758059475777,-400.0,0.00030958,6]
[385842942,1758059475786,-632.37,0.00030958,6]
[385842943,1758059475796,-400.0,0.00030958,6]
[385842944,1758059475806,-400.0,0.00030958,6]
[385842945,1758059475815,-400.0,0.00030958,6]
[385842946,1758059475825,-400.0,0.00030958,6]
[385842947,1758059475834,-400.0,0.00030958,6]
[385842948,1758059475843,-763.55,0.00030958,6]
[385842949,1758059475856,-400.0,0.00030958,6]
[385842950,1758059475866,-400.0,0.00030958,6]
[385842951,1758059475875,-400.0,0.00030958,6]
[385842952,1758059475884,-400.0,0.00030958,6]
[385842953,1758059475893,-400.0,0.00030958,6]
[385842954,1758059475902,-620.92,0.00030958,6]
[385842955,1758059475911,-701.89,0.00030958,6]
[385842956,1758059475920,-400.0,0.00030958,6]
[385842957,1758059475930,-406.26101314,0.00030958,6]
[385842958,1758059475939,-400.0,0.00030958,6]
[385842959,1758059475948,-400.0,0.00030958,6]
[385842960,1758059475958,-500.0,0.00030958,6]
[385842961,1758059475967,-796.09,0.00030958,6]
[385842962,1758059475977,-400.0,0.00030958,6]
[385842963,1758059475987,-400.0,0.00030958,6]
[385842964,1758059475996,-400.0,0.00030958,6]
[385842965,1758059476006,-400.0,0.00030958,6]
[385842966,1758059476017,-400.0,0.00030958,6]
[385842967,1758059476033,-400.0,0.00030958,6]
[385842968,1758059476043,-400.0,0.00030958,6]
[385842969,1758059476052,-400.0,0.00030958,6]
[385842970,1758059476062,-422.93258642,0.00030958,6]
[385842971,1758059476071,-400.0,0.00030958,6]
[385842972,1758059476081,-400.0,0.00030958,6]
[385842973,1758059476090,-400.0,0.00030958,6]
[385842974,1758059476099,-400.0,0.00030958,6]
[385842975,1758059476109,-400.0,0.00030958,6]
[385842976,1758059476118,-400.0,0.00030958,6]
[385842977,1758059476129,-745.62,0.00030958,6]
[385842978,1758059476138,-400.0,0.00030958,6]
[385842979,1758059476148,-400.0,0.00030958,6]
[385842980,1758059476157,-400.0,0.00030958,6]
[385842981,1758059476166,-400.0,0.00030958,6]
[385842982,1758059476175,-400.0,0.00030958,6]
[385842983,1758059476185,-629.24,0.00030958,6]
[385842984,1758059476194,-400.0,0.00030958,6]
[385842985,1758059476203,-400.0,0.00030958,6]
[385842986,1758059476213,-400.0,0.00030958,6]
[385842987,1758059476222,-447.35,0.00030958,6]
[385842988,1758059476231,-400.0,0.00030958,6]
[385842989,1758059476241,-400.0,0.00030958,6]
[385842990,1758059476250,-936.1,0.00030958,6]
[385842991,1758059476259,-400.0,0.00030958,6]
[385842992,1758059476269,-400.0,0.00030958,6]
[385842993,1758059476279,-400.0,0.00030958,6]
[385842994,1758059476288,-400.0,0.00030958,6]
[385842995,1758059476298,-400.0,0.00030958,6]
[385842996,1758059476308,-400.0,0.00030958,6]
[385842997,1758059476318,-400.0,0.00030958,6]
[385842998,1758059476327,-400.0,0.00030958,6]
[385842999,1758059476337,-400.0,0.00030958,6]
[385843000,1758059476346,-400.0,0.00030958,6]
[385843001,1758059476355,-400.0,0.00030958,6]
[385843002,1758059476365,-400.0,0.00030958,6]
[385843003,1758059476375,-400.0,0.00030958,6]
[385843004,1758059476385,-437.51622873,0.00030958,6]
[385843005,1758059476399,-400.0,0.00030958,6]
[385843006,1758059476409,-1215.29,0.00030958,6]
[385843007,1758059476419,-400.0,0.00030958,6]
[385843008,1758059476429,-400.0,0.00030958,6]
[385843009,1758059476441,-400.0,0.00030958,6]
[385843010,1758059476452,-400.0,0.00030958,6]
[385843011,1758059476462,-400.0,0.00030958,6]
[385843012,1758059476473,-400.0,0.00030958,6]
[385843013,1758059476485,-400.0,0.00030958,6]
[385843014,1758059476494,-400.0,0.00030958,6]
[385843015,1758059476503,-470.35,0.00030958,6]
[385843016,1758059476513,-400.0,0.00030958,6]
[385843017,1758059476522,-400.0,0.00030958,6]
[385843018,1758059476532,-400.0,0.00030958,6]
[385843019,1758059476541,-722.71,0.00030958,6]
[385843020,1758059476550,-400.0,0.00030958,6]
[385843021,1758059476560,-409.68223999,0.00030958,6]
[385843022,1758059476569,-400.0,0.00030958,6]
[385843023,1758059476579,-656.3,0.00030958,6]
[385843024,1758059476588,-400.0,0.00030958,6]
[385843025,1758059476597,-400.0,0.00030958,6]
[385843026,1758059476609,-400.0,0.00030958,6]
[385843027,1758059476620,-400.0,0.00030958,6]
[385843028,1758059476630,-1790.44,0.00030958,6]
[385843029,1758059476640,-400.0,0.00030958,6]
[385843030,1758059476650,-400.0,0.00030958,6]
[385843031,1758059476660,-317.97551158,0.00030958,6]
[385843032,1758059476669,-411.00322105,0.00030958,6]
[385843033,1758059476679,-400.0,0.00030958,6]
[385843034,1758059476688,-1382.16,0.00030958,6]
[385843035,1758059476697,-400.0,0.00030958,6]
[385843036,1758059476706,-1005.55,0.00030958,6]
[385843037,1758059476716,-400.0,0.00030958,6]
[385843038,1758059476725,-429.26,0.00030958,6]
[385843039,1758059476737,-400.0,0.00030958,6]
[385843040,1758059476746,-400.0,0.00030958,6]
[385843041,1758059476755,-400.0,0.00030958,6]
[385843042,1758059476765,-400.0,0.00030958,6]
[385843043,1758059476775,-400.0,0.00030958,6]
[385843044,1758059476784,-400.0,0.00030958,6]
[385843045,1758059476794,-400.0,0.00030958,6]
[385843046,1758059476803,-400.0,0.00030958,6]
[385843047,1758059476812,-400.0,0.00030958,6]
[385843048,1758059476821,-400.0,0.00030958,6]
[385843049,1758059476830,-400.0,0.00030958,6]
[385843050,1758059476839,-400.0,0.00030958,6]
[385843051,1758059476848,-400.0,0.00030958,6]
[385843052,1758059476857,-400.0,0.00030958,6]
[385843053,1758059476866,-671.41,0.00030958,6]
[385843054,1758059476875,-690.12,0.00030958,6]
[385843055,1758059476884,-607.8,0.00030958,6]
[385843056,1758059476893,-400.0,0.00030958,6]
[385843057,1758059476903,-400.0,0.00030958,6]
[385843058,1758059476912,-400.0,0.00030958,6]
[385843059,1758059476921,-1101.76,0.00030958,6]
[385843060,1758059476931,-644.78,0.00030958,6]
[385843061,1758059476940,-400.0,0.00030958,6]
[385843062,1758059476950,-400.0,0.00030958,6]
[385843063,1758059476959,-400.0,0.00030958,6]
[385843064,1758059476968,-400.0,0.00030958,6]
[385843065,1758059476977,-400.0,0.00030958,6]
[385843066,1758059476988,-400.0,0.00030958,6]
[385843067,1758059476998,-783.19,0.00030958,6]
[385843068,1758059477008,-400.0,0.00030958,6]
[385843069,1758059477017,-400.0,0.00030958,6]
[385843070,1758059477026,-400.0,0.00030958,6]
[385843071,1758059477035,-400.0,0.00030958,6]
[385843072,1758059477045,-400.0,0.00030958,6]
[385843073,1758059477055,-405.44154795,0.00030958,6]
[385843074,1758059477064,-400.0,0.00030958,6]
[385843075,1758059477073,-400.0,0.00030958,6]
[385843076,1758059477082,-467.3,0.00030958,6]
[385843077,1758059477091,-400.0,0.00030958,6]
[385843078,1758059477101,-450.16,0.00030958,6]
[385843079,1758059477110,-440.34327064,0.00030958,6]
[385843080,1758059477120,-400.0,0.00030958,6]
[385843081,1758059477129,-400.0,0.00030958,6]
[385843082,1758059477138,-400.0,0.00030958,6]
[385843083,1758059477147,-400.0,0.00030958,6]
[385843084,1758059477157,-400.0,0.00030958,6]
[385843085,1758059477166,-400.0,0.00030958,6]
[385843086,1758059477175,-400.0,0.00030958,6]
[385843087,1758059477185,-1181.9,0.00030958,6]
[385843088,1758059477194,-400.0,0.00030958,6]
[385843089,1758059477204,-400.0,0.00030958,6]
[385843090,1758059477213,-400.0,0.00030958,6]
[385843091,1758059477222,-431.77,0.00030958,6]
[385843092,1758059477231,-400.0,0.00030958,6]
[385843093,1758059477241,-400.0,0.00030958,6]
[385843094,1758059477250,-405.33141561,0.00030958,6]
[385843095,1758059477260,-400.0,0.00030958,6]
[385843096,1758059477269,-400.0,0.00030958,6]
[385843097,1758059477279,-1421.99,0.00030958,6]
[385843098,1758059477288,-400.0,0.00030958,6]
[385843099,1758059477298,-400.0,0.00030958,6]
[385843100,1758059477308,-604.53,0.00030958,6]
[385843101,1758059477317,-400.0,0.00030958,6]
[385843102,1758059477326,-417.22,0.00030958,6]
[385843103,1758059477335,-633.44,0.00030958,6]
[385843104,1758059477345,-400.0,0.00030958,6]
[385843105,1758059477354,-400.0,0.00030958,6]
[385843106,1758059477363,-400.0,0.00030958,6]
[385843107,1758059477437,-400.0,0.00030958,6]
[385843108,1758059477446,-400.0,0.00030958,6]
[385843109,1758059477455,-400.0,0.00030958,6]
[385843110,1758059477464,-400.0,0.00030958,6]
[385843111,1758059477473,-15084.844287,0.00030994,2]
[385843112,1758059477483,-153.0,0.00031,120]
[385843113,1758059477492,-155.0,0.00031,120]
[385843114,1758059477501,-35150.32,0.00031,7]
[385843115,1758059477510,-400.0,0.0003102,6]
[385843116,1758059477519,-400.0,0.0003102,6]
[385843117,1758059477528,-400.0,0.0003102,6]
[385843118,1758059477538,-400.0,0.0003102,6]
[385843119,1758059477547,-400.0,0.0003102,6]
[385843120,1758059477556,-892.92,0.0003102,6]
[385843121,1758059477565,-400.0,0.0003102,6]
[385843122,1758059477574,-568.06,0.0003102,6]
[385843123,1758059477584,-404.98576883,0.0003102,6]
[385843124,1758059477593,-1072.67,0.0003102,6]
[385843125,1758059477602,-512.55,0.0003102,6]
[385843126,1758059477611,-774.02,0.0003102,5]
[385843127,1758059477620,-400.0,0.0003102,6]
[385843128,1758059477629,-400.0,0.0003102,6]
[385843129,1758059477638,-400.0,0.0003102,6]
[385843130,1758059477647,-400.0,0.0003102,6]
[385843131,1758059477656,-1000.0,0.00031021,5]
[385843132,1758059477665,-1000.0,0.00031021,5]
[385843133,1758059477674,-1000.0,0.00031021,5]
[385843134,1758059477683,-250.000001,0.00031021,5]
[385843135,1758059477692,-400.0,0.00031132,5]
[385843136,1758059477701,-156.11368437,0.00031132,2]
[385843137,1758059477710,-2058.39,0.00031193,6]
[385843138,1758059477719,-400.0,0.00031193,6]
[385843139,1758059477728,-412.53,0.00031193,6]
[385843140,1758059477737,-618.61,0.00031193,6]
[385843141,1758059477745,-1651.68,0.00031193,6]
[385843142,1758059477754,-2717.2,0.00031193,6]
[385843143,1758059477763,-400.0,0.00031193,6]
[385843144,1758059477772,-400.0,0.00031193,6]
[385843145,1758059477782,-462.71,0.00031193,6]
[385843146,1758059477791,-400.0,0.00031193,6]
[385843147,1758059477800,-400.0,0.00031193,6]
[385843148,1758059477809,-400.0,0.00031193,6]
[385843149,1758059477818,-400.0,0.00031193,6]
[385843150,1758059477827,-400.0,0.00031193,6]
[385843151,1758059477836,-400.0,0.00031193,6]
[385843152,1758059477845,-3231.76,0.00031193,6]
[385843153,1758059477854,-400.0,0.00031193,6]
[385843154,1758059477863,-436.89,0.00031193,6]
[385843155,1758059477872,-400.0,0.00031193,6]
[385843156,1758059477881,-485.67,0.0003123,6]
[385843157,1758059477890,-400.0,0.0003123,6]
[385843158,1758059477899,-467.8,0.0003123,6]
[385843159,1758059477908,-400.0,0.0003123,6]
[385843160,1758059477917,-400.0,0.00031231,6]
[385843161,1758059477926,-404.97,0.00031231,6]
[385843162,1758059477937,-431.58,0.00031231,6]
[385843163,1758059477946,-564.94,0.00031231,6]
[385843164,1758059477955,-400.0,0.00031231,6]
[385843165,1758059477964,-475.93,0.00031231,6]
[385843166,1758059477973,-646.81,0.00031231,6]
[385843167,1758059477981,-400.0,0.00031231,6]
[385843168,1758059477990,-400.0,0.00031231,6]
[385843169,1758059477999,-400.0,0.00031231,6]
[385843170,1758059478008,-503.49,0.00031231,6]
[385843171,1758059478017,-555.18,0.00031231,6]
[385843172,1758059478026,-493.67,0.00031231,6]
[385843173,1758059478035,-406.48,0.00031231,6]
[385843174,1758059478044,-400.0,0.00031231,6]
[385843175,1758059478053,-472.57,0.00031231,6]
[385843176,1758059478063,-566.4,0.00031231,6]
[385843177,1758059478072,-443.11,0.00031231,6]
[385843178,1758059478081,-400.0,0.00031231,6]
[385843179,1758059478091,-556.41,0.00031231,6]
[385843180,1758059478100,-642.62,0.00031231,6]
[385843181,1758059478109,-526.48,0.00031231,6]
[385843182,1758059478118,-638.73,0.00031231,6]
[385843183,1758059478127,-400.0,0.00031231,6]
[385843184,1758059478136,-400.0,0.00031231,6]
[385843185,1758059478146,-400.0,0.00031231,6]
[385843186,1758059478156,-514.99,0.00031231,6]
[385843187,1758059478165,-477.56,0.00031231,6]
[385843188,1758059478175,-400.0,0.00031231,6]
[385843189,1758059478185,-400.0,0.00031231,6]
[385843190,1758059478196,-824.84,0.00031231,6]
[385843191,1758059478205,-558.91,0.00031231,6]
[385843192,1758059478215,-429.04,0.00031231,6]
[385843193,1758059478225,-771.88,0.00031231,6]
[385843194,1758059478235,-400.0,0.00031231,6]
[385843195,1758059478245,-456.11,0.00031231,6]
[385843196,1758059478254,-400.0,0.00031231,6]
[385843197,1758059478264,-422.65,0.00031231,6]
[385843198,1758059478273,-400.0,0.00031231,6]
[385843199,1758059478282,-400.0,0.00031231,6]
[385843200,1758059478293,-400.0,0.00031231,6]
[385843201,1758059478302,-404.79968525,0.00031231,6]
[385843202,1758059478312,-400.0,0.00031231,6]
[385843203,1758059478322,-682.71,0.00031231,6]
[385843204,1758059478331,-1411.58,0.00031231,6]
[385843205,1758059478341,-1000.0,0.00031231,6]
[385843206,1758059478351,-876.88,0.00031231,6]
[385843207,1758059478361,-590.13,0.00031231,6]
[385843208,1758059478371,-500.0,0.00031231,6]
[385843209,1758059478380,-400.0,0.00031231,6]
[385843210,1758059478394,-590.27,0.00031231,6]
[385843211,1758059478404,-407.07804283,0.00031232,6]
[385843212,1758059478413,-405.87862275,0.00031232,6]
[385843213,1758059478423,-400.0,0.00031232,6]
[385843214,1758059478432,-405.37954779,0.00031232,6]
[385843215,1758059478442,-400.0,0.00031232,6]
[385843216,1758059478452,-400.0,0.00031232,6]
[385843217,1758059478465,-400.0,0.00031232,6]
[385843218,1758059478474,-400.0,0.00031232,6]
[385843219,1758059478484,-438.52002379,0.00031232,6]
[385843220,1758059478493,-400.0,0.00031232,6]
[385843221,1758059478503,-400.0,0.00031232,6]
[385843222,1758059478513,-400.0,0.00031232,6]
[385843223,1758059478522,-400.0,0.00031232,6]
[385843224,1758059478532,-400.0,0.00031232,6]
[385843225,1758059478541,-400.0,0.00031232,6]
[385843226,1758059478551,-400.0,0.00031232,6]
[385843227,1758059478561,-400.0,0.00031232,6]
[385843228,1758059478570,-400.0,0.00031232,6]
[385843229,1758059478581,-432.93707266,0.00031232,6]
[385843230,1758059478591,-400.0,0.00031232,6]
[385843231,1758059478601,-400.0,0.00031232,6]
[385843232,1758059478611,-400.0,0.00031232,6]
[385843233,1758059478621,-400.0,0.00031232,6]
[385843234,1758059478630,-400.0,0.00031232,6]
[385843235,1758059478639,-400.0,0.00031232,6]
[385843236,1758059478649,-400.0,0.00031232,6]
[385843237,1758059478658,-400.0,0.00031232,6]
[385843238,1758059478668,-400.0,0.00031232,6]
[385843239,1758059478677,-400.0,0.00031232,6]
[385843240,1758059478687,-400.0,0.00031232,6]
[385843241,1758059478697,-400.0,0.00031232,6]
[385843242,1758059478706,-400.0,0.00031232,6]
[385843243,1758059478716,-405.87269422,0.00031232,6]
[385843244,1758059478725,-400.0,0.00031232,6]
[385843245,1758059478734,-402.98455544,0.00031232,6]
[385843246,1758059478744,-400.0,0.00031232,6]
[385843247,1758059478753,-403.6676428,0.00031232,6]
[385843248,1758059478763,-400.0,0.00031232,6]
[385843249,1758059478772,-400.0,0.00031232,6]
[385843250,1758059478782,-446.83,0.00031232,6]
[385843251,1758059478791,-400.0,0.00031232,6]
[385843252,1758059478802,-400.0,0.00031232,6]
[385843253,1758059478811,-400.0,0.00031232,6]
[385843254,1758059478821,-400.0,0.00031232,6]
[385843255,1758059478831,-400.0,0.00031232,6]
[385843256,1758059478840,-400.0,0.00031232,6]
[385843257,1758059478849,-400.0,0.00031232,6]
[385843258,1758059478859,-400.0,0.00031232,6]
[385843259,1758059478869,-490.9383618,0.00031232,6]
[385843260,1758059478878,-400.0,0.00031232,6]
[385843261,1758059478888,-447.67428718,0.00031232,6]
[385843262,1758059478897,-400.0,0.00031232,6]
[385843263,1758059478907,-519.20839855,0.00031232,6]
[385843264,1758059478917,-400.0,0.00031232,6]
[385843265,1758059478926,-400.0,0.00031232,6]
[385843266,1758059478936,-547.28,0.00031232,6]
[385843267,1758059478945,-400.0,0.00031232,6]
[385843268,1758059478955,-400.0,0.00031232,6]
[385843269,1758059478965,-400.0,0.00031232,6]
[385843270,1758059478975,-400.0,0.00031232,6]
[385843271,1758059478985,-400.0,0.00031232,6]
[385843272,1758059478995,-400.0,0.00031232,6]
[385843273,1758059479004,-400.0,0.00031232,6]
[385843274,1758059479014,-400.0,0.00031232,6]
[385843275,1758059479025,-400.0,0.00031232,6]
[385843276,1758059479034,-400.0,0.00031232,6]
[385843277,1758059479044,-400.0,0.00031232,6]
[385843278,1758059479054,-400.0,0.00031232,6]
[385843279,1758059479064,-400.0,0.00031232,6]
[385843280,1758059479073,-400.0,0.00031232,6]
[385843281,1758059479083,-400.0,0.00031232,6]
[385843282,1758059479093,-400.0,0.00031232,6]
[385843283,1758059479103,-400.0,0.00031232,6]
[385843284,1758059479113,-400.0,0.00031232,6]
[385843285,1758059479123,-400.0,0.00031232,6]
[385843286,1758059479132,-400.0,0.00031232,6]
[385843287,1758059479142,-400.0,0.00031232,6]
[385843288,1758059479152,-400.0,0.00031232,6]
[385843289,1758059479162,-400.0,0.00031232,6]
[385843290,1758059479171,-400.0,0.00031232,6]
[385843291,1758059479181,-400.0,0.00031232,6]
[385843292,1758059479190,-400.0,0.00031232,6]
[385843293,1758059479200,-404.16,0.00031232,6]
[385843294,1758059479210,-400.0,0.00031232,6]
[385843295,1758059479219,-400.0,0.00031232,6]
[385843296,1758059479229,-400.0,0.00031232,6]
[385843297,1758059479238,-528.17,0.00031232,6]
[385843298,1758059479248,-403.03760233,0.00031232,6]
[385843299,1758059479259,-542.9,0.00031232,6]
[385843300,1758059479269,-400.0,0.00031232,6]
[385843301,1758059479279,-400.0,0.00031232,6]
[385843302,1758059479288,-400.0,0.00031232,6]
[385843303,1758059479298,-400.0,0.00031232,6]
[385843304,1758059479308,-400.0,0.00031232,6]
[385843305,1758059479317,-400.0,0.00031232,6]
[385843306,1758059479327,-232.86244042,0.00031232,6]
[385843307,1758059479337,-400.0,0.00031232,6]
[385843308,1758059479347,-400.0,0.00031232,6]
[385843309,1758059479356,-400.0,0.00031232,6]
[385843310,1758059479366,-400.0,0.00031232,6]
[385843311,1758059479376,-400.0,0.00031232,6]
[385843312,1758059479386,-468.83684772,0.00031232,6]
[385843313,1758059479399,-854.5,0.00031232,6]
[385843314,1758059479409,-400.0,0.00031232,6]
[385843315,1758059479418,-403.43,0.00031232,6]
[385843316,1758059479428,-400.0,0.00031232,6]
[385843317,1758059479438,-400.0,0.00031232,6]
[385843318,1758059479448,-400.0,0.00031232,6]
[385843319,1758059479458,-400.0,0.00031232,6]
[385843320,1758059479469,-400.0,0.00031232,6]
[385843321,1758059479479,-400.0,0.00031232,6]
[385843322,1758059479489,-400.0,0.00031232,6]
[385843323,1758059479499,-400.0,0.00031232,6]
[385843324,1758059479509,-400.0,0.00031232,6]
[385843325,1758059479519,-420.55061872,0.00031232,6]
[385843326,1758059479528,-400.0,0.00031232,6]
[385843327,1758059479538,-400.0,0.00031232,6]
[385843328,1758059479548,-400.0,0.00031232,6]
[385843329,1758059479557,-400.0,0.00031232,6]
[385843330,1758059479567,-400.0,0.00031232,6]
[385843331,1758059479577,-400.0,0.00031232,6]
[385843332,1758059479588,-285.46065783,0.00031232,6]
[385843333,1758059479598,-400.0,0.00031232,6]
[385843334,1758059479607,-400.0,0.00031232,6]
[385843335,1758059479617,-400.0,0.00031232,6]
[385843336,1758059479627,-400.0,0.00031232,6]
[385843337,1758059479637,-400.0,0.00031232,6]
[385843338,1758059479646,-400.0,0.00031232,6]
[385843339,1758059479655,-400.0,0.00031232,6]
[385843340,1758059479665,-425.79,0.00031232,6]
[385843341,1758059479674,-400.0,0.00031232,6]
[385843342,1758059479684,-440.62,0.00031232,6]